bitfinex/quotes_ETHUSD_20241223
["timestamp","ask_amount","ask_price","bid_price","bid_amount"]
[1734927776727,0.02777633,3357.7,3356.9,0.7729]
[1734927776947,2.97799,3358.0,3356.9,0.7729]
[1734927777163,0.02777633,3357.6,3356.9,0.7729]
[1734927777317,2.97807,3357.9,3356.9,0.7729]
[1734927777503,0.02777633,3357.5,3356.9,0.7729]
[1734927777701,2.97807,3357.9,3356.9,0.7729]
[1734927777963,0.02777633,3357.4,3356.9,0.7729]
[1734927778115,2.97807,3357.9,3356.9,1.55566122]
[1734927778314,0.02777633,3357.3,3356.9,1.55566122]
[1734927778529,3.0,3358.1,3356.9,1.55566122]
[1734927778848,0.02777633,3358.0,3356.9,1.55566122]
[1734927780253,2.97816,3357.8,3356.9,0.7729]
[1734927780417,0.02777633,3358.0,3356.9,0.7729]
[1734927780617,3.00573633,3358.0,3356.9,0.7729]
[1734927780842,2.97816,3357.8,3356.9,0.7729]
[1734927781040,0.02843613,3357.7,3356.9,0.7729]
[1734927781252,0.02843613,3357.7,3356.9,4.1863684]
[1734927781549,0.27681326,3357.6,3357.0,0.7603]
[1734927781728,2.97807,3357.9,3357.0,0.7603]
[1734927782119,0.02843613,3357.8,3357.0,0.7603]
[1734927782326,0.30509103,3357.8,3357.0,0.7603]
[1734927782558,3.28323103,3357.8,3357.0,0.7603]
[1734927783027,0.2766549,3357.7,3357.0,0.7603]
[1734927783229,0.0300568,3357.6,3357.0,0.7603]
[1734927783988,2.97814,3357.8,3357.0,0.7603]
[1734927784273,0.03006333,3357.5,3357.0,0.7603]
[1734927784474,2.97814,3357.8,3357.0,0.7603]
[1734927784675,0.03006333,3357.4,3357.0,0.7603]
[1734927784876,0.27632572,3357.7,3357.0,0.7603]
[1734927785074,0.03006333,3357.3,3357.0,0.7603]
[1734927785243,0.27632572,3357.6,3357.0,0.7603]
[1734927785442,0.03008292,3357.5,3357.0,1.13633]
[1734927785976,2.97814,3357.8,3357.0,1.13633]
[1734927786172,0.03008292,3357.7,3357.0,1.13633]
[1734927786469,3.0,3358.3,3357.0,1.13633]
[1734927786470,2.9777,3358.3,3357.0,1.13633]
[1734927786675,2.97846,3357.5,3357.0,0.7603]
[1734927786980,0.03010251,3357.4,3357.0,0.7603]
[1734927789142,0.03010251,3357.4,3356.7,0.8037]
[1734927789379,2.97822,3357.7,3356.7,0.8037]
[1734927789536,2.97889,3357.0,3356.7,0.8037]
[1734927790237,0.03010251,3356.9,3356.7,0.8037]
[1734927790743,2.97838,3357.6,3356.7,0.8037]
[1734927790942,2.97874,3357.2,3356.7,0.8037]
[1734927791360,0.3065848,3357.1,3356.7,0.8037]
[1734927791936,2.97915,3356.7,3355.8,0.8017]
[1734927792228,0.03007638,3356.6,3355.9,0.72834582]
[1734927793399,2.97929,3356.5,3355.9,0.72834582]
[1734927793585,2.97939,3356.4,3355.9,0.72834582]
[1734927793771,0.03007638,3356.3,3355.9,0.72834582]
[1734927794104,0.03007638,3356.3,3356.1,0.8024]
[1734927794609,0.02985434,3356.2,3356.1,0.8024]
[1734927794794,2.9793,3356.5,3356.1,0.8024]
[1734927794984,0.02985434,3356.4,3356.1,0.8024]
[1734927796012,0.27708251,3356.3,3356.1,0.8024]
[1734927796225,0.27708251,3356.3,3356.1,1.01367401]
[1734927796507,0.02985434,3356.2,3356.1,1.01367401]
[1734927796875,2.9792,3356.6,3356.1,1.01367401]
[1734927797077,0.02985434,3356.2,3356.1,1.01367401]
[1734927797286,2.9792,3356.6,3356.1,1.01367401]
[1734927797486,0.02985434,3356.2,3356.1,1.01367401]
[1734927797732,2.9792,3356.6,3356.1,1.01367401]
[1734927797912,0.02985434,3356.2,3356.1,1.01367401]
[1734927798088,0.27776226,3356.5,3356.1,1.01367401]
[1734927798285,0.02985434,3356.2,3356.1,1.01367401]
[1734927798485,0.27776226,3356.5,3356.2,0.776]
[1734927798686,2.97881,3357.1,3356.3,0.36909718]
[1734927798887,0.02985434,3356.4,3356.3,0.36909718]
[1734927799094,6.759,3357.5,3356.3,0.36909718]
[1734927799416,0.27835147,3357.0,3356.3,0.36909718]
[1734927799801,0.27835147,3356.9,3356.4,0.8114]
[1734927799984,0.30820581,3356.9,3356.4,0.8114]
[1734927800316,0.27835147,3356.8,3356.4,0.8114]
[1734927800889,0.0288518,3356.7,3356.4,0.8114]
[1734927801099,0.30720327,3356.7,3356.4,0.8114]
[1734927801304,0.27835147,3356.7,3356.6,0.8114]
[1734927801599,2.97842,3357.5,3356.6,0.8114]
[1734927801833,0.0288518,3356.7,3356.6,0.8114]
[1734927802038,2.97868,3357.2,3356.6,0.8114]
[1734927802202,0.0288518,3356.7,3356.6,0.8114]
[1734927802400,5.97855,3357.4,3356.6,0.8114]
[1734927802621,0.0288518,3356.7,3356.6,0.8114]
[1734927802923,2.97886,3357.0,3356.6,0.8114]
[1734927803416,0.0291522,3356.9,3356.6,0.8114]
[1734927803882,3.0080922,3356.9,3356.6,0.8114]
[1734927804733,0.0291522,3356.9,3356.6,0.8114]
[1734927805042,0.8091,3358.2,3356.7,0.7807]
[1734927805248,0.8091,3358.2,3356.8,0.34843978]
[1734927805385,2.97796,3358.0,3356.9,0.8032]
[1734927805918,0.8091,3358.2,3357.1,0.8032]
[1734927805919,2.97779,3358.2,3357.1,0.8032]
[1734927806527,2.97779,3358.2,3357.2,0.58334029]
[1734927807338,3.8117,3358.5,3357.1,0.8032]
[1734927807486,2.97814,3357.8,3357.1,0.8032]
[1734927807689,2.97824,3357.7,3357.1,1.21836398]
[1734927807999,2.97867,3357.3,3356.5,0.8032]
[1734927808239,0.8117,3357.9,3356.5,2.03789148]
[1734927808418,0.7907,3357.2,3356.5,2.63101475]
[1734927808721,2.97911,3356.8,3356.5,2.03789148]
[1734927809108,2.97911,3356.8,3356.5,0.8032]
[1734927809305,2.97913,3356.7,3356.5,0.8032]
[1734927809509,0.7907,3357.2,3356.5,0.8032]
[1734927809847,0.7907,3357.2,3355.7,3.93838927]
[1734927809848,2.97924,3356.6,3356.1,0.8276]
[1734927810024,2.97935,3356.5,3356.1,1.2695509]
[1734927810356,2.97935,3356.5,3356.1,0.8276]
[1734927810503,2.97947,3356.3,3356.1,0.8276]
[1734927810706,2.97876,3357.1,3355.6,1.23469148]
[1734927810707,2.97957,3356.2,3355.8,0.7567]
[1734927811129,0.8225,3357.0,3355.8,0.7567]
[1734927811338,2.97965,3356.1,3355.8,0.7567]
[1734927812776,2.97968,3356.1,3355.8,0.7567]
[1734927814003,0.8225,3356.5,3355.4,1.35564776]
[1734927814221,3.0,3356.4,3355.4,0.7567]
[1734927814429,2.98018,3355.5,3355.3,1.23469148]
[1734927814606,0.55,3356.2,3355.3,1.23469148]
[1734927814809,2.98022,3355.5,3355.1,1.99139148]
[1734927815748,3.56976638,3356.7,3355.4,2.98026]
[1734927816043,0.8225,3357.8,3356.4,2.70369779]
[1734927816217,3.80066,3357.8,3356.4,2.97937]
[1734927816424,2.97825,3357.7,3356.6,0.7567]
[1734927817243,2.97832,3357.6,3356.6,0.7567]
[1734927817830,2.97832,3357.6,3356.7,2.56835974]
[1734927818429,2.97858,3357.3,3356.8,1.02769905]
[1734927819011,2.97858,3357.3,3356.6,0.7567]
[1734927819350,2.97858,3357.3,3356.7,0.4430307]
[1734927819549,2.97858,3357.3,3356.6,0.7567]
[1734927819713,2.97822,3357.7,3356.6,0.7567]
[1734927820052,2.97877,3357.1,3356.6,0.7567]
[1734927820819,0.8225,3357.8,3356.3,0.8305]
[1734927821017,0.8288,3357.5,3356.3,0.8305]
[1734927821255,2.97904,3356.8,3356.3,0.8305]
[1734927822819,0.27841386,3356.7,3356.3,0.8305]
[1734927823015,2.9792,3356.6,3356.3,0.8305]
[1734927823216,2.97938,3356.4,3355.9,1.98619148]
[1734927823556,0.27841386,3356.3,3355.9,2.88073134]
[1734927824060,0.27841386,3356.2,3355.9,2.88073134]
[1734927824254,0.27841386,3356.2,3355.9,1.64603986]
[1734927824430,0.27841386,3356.2,3355.9,0.7515]
[1734927824636,0.27841386,3356.5,3355.9,0.7515]
[1734927825025,0.27841386,3356.5,3355.6,7.06254263]
[1734927825026,0.27841386,3356.4,3356.0,4.00778903]
[1734927825220,0.27841386,3356.4,3356.1,2.97957]
[1734927825426,0.27841386,3356.4,3356.0,1.02807903]
[1734927825427,0.27841386,3356.4,3356.2,0.7735]
[1734927825632,0.27841386,3357.3,3356.3,0.1801579]
[1734927825843,2.97908,3356.8,3356.2,2.00819148]
[1734927826053,2.97931,3356.5,3356.2,2.00819148]
[1734927826439,2.97931,3356.5,3356.2,1.23469148]
[1734927826642,0.27842128,3356.7,3356.4,1.02807903]
[1734927826841,3.25763128,3356.6,3356.4,1.02807903]
[1734927827032,2.97929,3356.5,3356.4,1.02807903]
[1734927827430,0.27842128,3356.5,3356.4,1.02807903]
[1734927827726,0.27842128,3356.5,3356.0,0.8177]
[1734927828134,0.27842128,3356.4,3356.0,0.8177]
[1734927828550,3.25745128,3356.8,3356.0,0.8177]
[1734927828756,3.25745128,3356.8,3356.0,1.32293915]
[1734927828944,0.27842128,3356.7,3356.1,3.80244986]
[1734927829368,0.27842128,3356.6,3356.1,3.80244986]
[1734927829561,0.27842128,3356.6,3356.1,1.02710335]
[1734927829969,0.27842128,3356.6,3356.1,1.68557675]
[1734927830171,0.27842128,3356.5,3356.1,1.68557675]
[1734927830461,0.27842128,3356.4,3356.1,1.68557675]
[1734927830667,0.27842128,3356.4,3356.1,0.6584734]
[1734927831065,0.27842128,3356.3,3356.1,0.6584734]
[1734927831272,0.27842128,3356.3,3355.9,1.23469148]
[1734927831428,0.27842128,3356.2,3355.9,1.23469148]
[1734927831771,2.97973,3356.0,3355.9,1.23469148]
[1734927831933,0.27842128,3356.1,3355.9,1.23469148]
[1734927832136,3.25813128,3356.1,3355.3,2.02439148]
[1734927832490,2.97986,3355.9,3355.3,2.70349185]
[1734927832845,2.97986,3355.9,3355.4,1.02798605]
[1734927833049,0.27842128,3355.8,3355.4,1.02798605]
[1734927833557,0.27842128,3355.8,3355.3,1.46880037]
[1734927833759,0.27842128,3355.7,3355.3,1.46880037]
[1734927833961,0.27842128,3355.7,3355.4,0.37426322]
[1734927834373,0.27842128,3355.6,3355.4,0.37426322]
[1734927835086,2.97948,3356.3,3355.4,0.37426322]
[1734927835285,3.13151019,3357.6,3355.5,0.8024]
[1734927835286,2.97929,3356.6,3355.5,0.8024]
[1734927835446,0.7553,3356.8,3355.5,0.8024]
[1734927835642,2.97929,3356.5,3355.6,0.41570032]
[1734927835845,3.2576902,3356.5,3355.6,0.41570032]
[1734927836055,2.97947,3356.3,3355.6,0.41570032]
[1734927836257,0.27840539,3356.2,3355.5,0.8024]
[1734927836674,0.27840539,3356.1,3355.5,0.8024]
[1734927837285,3.25809539,3356.1,3355.5,0.8024]
[1734927837485,0.27840539,3356.0,3355.5,0.8024]
[1734927838181,2.97969,3356.1,3355.5,0.8024]
[1734927838182,0.27840539,3355.9,3355.5,0.8024]
[1734927838382,3.25824539,3355.9,3355.5,0.8024]
[1734927838951,0.27840539,3355.8,3355.5,0.8024]
[1734927839256,3.25841539,3355.7,3355.2,0.8177]
[1734927839882,0.27840539,3355.6,3355.2,0.8177]
[1734927840385,3.25858539,3355.5,3354.9,1.23469148]
[1734927840597,3.25858539,3355.5,3354.9,2.05239148]
[1734927840882,0.27840539,3355.4,3354.9,2.68977265]
[1734927841087,0.27840539,3355.4,3354.9,1.45508117]
[1734927841596,0.27840539,3355.3,3354.9,1.45508117]
[1734927842150,0.27840539,3355.2,3354.9,1.45508117]
[1734927842653,3.4705119,3355.2,3354.7,1.23469148]
[1734927842854,2.98089,3354.7,3354.6,1.23469148]
[1734927843053,3.25929539,3354.7,3354.6,1.23469148]
[1734927844397,3.25929539,3354.7,3353.9,3.3757471]
[1734927844591,0.7656,3355.2,3354.0,0.521804]
[1734927844895,2.98073,3354.9,3354.1,0.7835]
[1734927845090,0.27803387,3354.6,3354.2,5.98124]
[1734927845387,0.27803387,3354.6,3354.3,0.7835]
[1734927845590,2.98018,3355.5,3354.3,0.7835]
[1734927845757,0.7715,3355.6,3354.4,0.94696519]
[1734927845953,2.98038,3355.3,3354.4,0.94696519]
[1734927846375,0.27793133,3355.2,3354.4,0.94696519]
[1734927846770,0.27793133,3355.1,3354.4,0.94696519]
[1734927847180,0.27793133,3355.0,3354.4,0.94696519]
[1734927847496,2.98071,3354.9,3354.3,0.7835]
[1734927847660,0.27793133,3355.0,3354.3,0.7835]
[1734927847885,0.27793133,3354.8,3354.3,0.7835]
[1734927848299,0.27793133,3355.0,3354.3,0.7835]
[1734927848708,0.27793133,3355.0,3354.4,2.98107]
[1734927849000,2.98008,3355.7,3354.6,0.767]
[1734927849199,2.7049119,3356.4,3354.8,3.767]
[1734927849401,0.27795112,3355.6,3355.0,0.767]
[1734927849602,0.27795112,3355.6,3355.0,3.74761]
[1734927849800,0.27795112,3355.5,3355.1,0.674761]
[1734927850408,0.27795112,3355.5,3355.2,0.7046]
[1734927850606,2.97965,3356.1,3355.2,0.7046]
[1734927851128,0.27798504,3356.0,3355.2,0.7046]
[1734927851489,0.27798504,3356.0,3355.2,0.6546]
[1734927851696,0.27798504,3355.9,3355.2,0.6546]
[1734927852091,0.27798504,3355.8,3355.2,0.6546]
[1734927852532,0.27798504,3356.0,3355.2,0.6046]
[1734927852733,0.27798504,3356.0,3355.2,1.02311505]
[1734927852931,0.27798504,3355.9,3355.2,1.02311505]
[1734927853135,0.27798504,3355.9,3355.2,0.6046]
[1734927853429,0.27798504,3355.8,3355.2,0.6046]
[1734927853632,0.27798504,3355.8,3355.2,0.5546]
[1734927853821,3.25791504,3355.8,3355.2,0.5546]
[1734927854231,0.27798504,3355.7,3355.2,0.5546]
[1734927854745,0.27798504,3355.6,3355.2,0.5046]
[1734927855099,2.98037,3355.3,3354.5,1.23469148]
[1734927855298,2.98055,3355.1,3354.5,1.54336435]
[1734927855499,0.27798504,3355.0,3354.5,1.23469148]
[1734927855704,0.27798504,3355.0,3354.5,1.18469148]
[1734927856001,0.27798504,3354.9,3354.5,1.18469148]
[1734927856331,2.98081,3354.8,3354.5,1.18469148]
[1734927856531,0.27798504,3354.8,3354.5,1.18469148]
[1734927856733,0.27798504,3354.8,3354.5,1.13469148]
[1734927856911,0.27798504,3354.7,3354.0,3.15934399]
[1734927857113,0.27798504,3354.7,3354.1,0.3159344]
[1734927857437,0.27798504,3354.6,3354.1,0.3159344]
[1734927857601,0.27798504,3354.6,3354.2,0.7976]
[1734927857800,2.98084,3354.8,3354.2,0.7976]
[1734927858027,2.98084,3354.8,3353.6,3.7976]
[1734927858028,0.8256,3354.8,3353.6,3.7976]
[1734927858231,2.98108,3354.5,3353.8,0.59245638]
[1734927858536,2.98117,3354.4,3353.6,0.7976]
[1734927859033,3.25924504,3354.3,3353.7,1.02360908]
[1734927859400,0.27798504,3354.3,3353.7,1.02360908]
[1734927859601,0.7814,3354.1,3353.7,1.02360908]
[1734927859834,0.27798504,3354.0,3353.7,1.02360908]
[1734927860014,3.25949504,3354.0,3353.7,1.02360908]
[1734927860317,3.25949504,3354.0,3353.3,0.7917]
[1734927860519,0.27798504,3353.9,3353.3,0.7917]
[1734927861035,0.27798504,3353.8,3352.9,0.8104]
[1734927861193,2.98187,3353.6,3352.9,0.8104]
[1734927861402,4.05944504,3353.5,3352.4,0.8104]
[1734927861841,4.05944504,3353.5,3352.5,0.61179897]
[1734927862008,0.27798504,3353.4,3352.5,1.50802178]
[1734927862349,3.26003504,3353.4,3352.5,0.61179897]
[1734927862531,2.98289694,3353.3,3352.3,1.85203722]
[1734927862727,0.7582,3352.5,3352.3,1.85203722]
[1734927862940,0.7582,3352.5,3351.6,1.85203722]
[1734927863142,0.27798504,3352.4,3351.6,2.4448518]
[1734927863347,3.26094504,3352.4,3351.6,2.4448518]
[1734927863639,2.98314,3352.2,3351.6,1.85203722]
[1734927864255,0.27798504,3352.1,3351.6,1.85203722]
[1734927864553,0.27798504,3352.1,3351.6,0.44353592]
[1734927864751,0.7582,3352.5,3351.5,0.8017]
[1734927865254,0.27739003,3352.4,3351.5,0.8017]
[1734927865428,0.27739003,3352.4,3351.5,3.78541]
[1734927865636,0.7992,3352.9,3351.5,0.8017]
[1734927865818,0.7992,3352.9,3352.1,0.7626]
[1734927866019,3.7538,3353.2,3352.1,1.137184]
[1734927866248,0.27715756,3352.8,3352.1,1.137184]
[1734927866442,0.7538,3353.2,3352.3,2.98296]
[1734927866859,3.73609,3353.2,3352.1,1.137184]
[1734927867156,0.2770587,3353.1,3351.9,0.59718881]
[1734927867359,0.7592,3352.7,3351.9,0.59718881]
[1734927867730,0.2770587,3352.6,3351.9,0.59718881]
[1734927868344,0.2770587,3352.5,3351.4,2.9838]
[1734927868560,3.78253,3352.3,3351.3,0.59467936]
[1734927868723,0.7995,3352.3,3351.3,0.59467936]
[1734927869243,0.2770587,3352.2,3351.3,0.59467936]
[1734927869744,0.2770587,3352.1,3351.3,0.59467936]
[1734927870263,0.2770587,3352.0,3351.3,0.59467936]
[1734927870650,0.2770587,3351.9,3351.3,0.59467936]
[1734927870851,2.98365,3351.6,3351.0,0.1713274]
[1734927871365,1.0888587,3351.8,3351.0,0.1713274]
[1734927871561,0.8118,3351.8,3351.0,0.1713274]
[1734927872031,0.27650234,3351.7,3351.0,0.1713274]
[1734927872354,0.8118,3351.8,3351.0,0.1713274]
[1734927872535,0.55,3351.7,3351.0,0.1713274]
[1734927872935,3.26003936,3351.6,3351.0,0.1713274]
[1734927873453,2.98365,3351.6,3351.0,0.1713274]
[1734927873652,0.27621928,3351.5,3351.0,0.1713274]
[1734927874151,3.48356,3351.7,3351.0,0.1713274]
[1734927874353,0.5,3351.7,3351.0,0.1713274]
[1734927874575,2.98375,3351.5,3351.0,0.1713274]
[1734927874738,0.27606735,3351.6,3351.0,0.1713274]
[1734927875078,3.48358,3351.7,3351.0,0.1713274]
[1734927875279,0.8118,3351.8,3351.0,0.1713274]
[1734927875761,0.27595649,3351.7,3351.0,0.1713274]
[1734927875953,3.25952649,3351.7,3351.0,0.1713274]
[1734927876158,2.98357,3351.7,3351.0,0.1713274]
[1734927877297,0.27591308,3351.6,3351.0,0.1713274]
[1734927877648,0.8118,3351.8,3351.0,0.1713274]
[1734927878040,0.8118,3351.8,3351.0,3.1554974]
[1734927878238,0.8118,3351.8,3351.0,0.1713274]
[1734927879597,2.98357,3351.7,3351.0,0.1713274]
[1734927879793,2.9837,3351.6,3351.0,0.1713274]
[1734927880004,2.98384,3351.4,3351.0,0.1713274]
[1734927880344,2.98409,3351.1,3351.0,0.1713274]
[1734927880664,7.35249,3351.1,3351.0,0.1713274]
[1734927881188,7.62839345,3351.1,3351.0,0.1713274]
[1734927881614,7.07839345,3351.1,3351.0,0.1713274]
[1734927881740,1.09430345,3351.1,3351.0,0.1713274]
[1734927881965,7.07839345,3351.1,3351.0,0.1713274]
[1734927882514,7.62839345,3351.1,3351.0,0.1713274]
[1734927884163,4.09430345,3351.1,3351.0,0.1713274]
[1734927884512,1.09430345,3351.1,3351.0,0.1713274]
[1734927884812,0.27590345,3351.1,3351.0,0.1713274]
[1734927885015,3.27590345,3351.1,3351.0,0.1713274]
[1734927885459,0.27590345,3351.1,3351.0,0.1713274]
[1734927886315,3.25951345,3351.7,3351.0,0.1713274]
[1734927886493,0.27590345,3351.7,3351.0,0.1713274]
[1734927886701,0.27590345,3351.6,3351.0,0.1713274]
[1734927886901,0.27590345,3351.6,3351.1,0.7814]
[1734927887270,0.27590345,3351.5,3351.1,0.7814]
[1734927887516,0.27590345,3351.5,3351.1,1.17509774]
[1734927887669,0.27590345,3351.8,3351.1,1.17509774]
[1734927888072,0.27590345,3351.8,3351.1,0.7814]
[1734927888287,0.27590345,3351.7,3351.1,0.7814]
[1734927888719,0.27590345,3351.6,3351.1,0.7814]
[1734927889458,0.27590345,3351.5,3351.1,0.7814]
[1734927889788,0.27590345,3351.4,3351.1,0.7814]
[1734927890225,0.27590345,3351.3,3351.2,0.39368774]
[1734927890581,0.7786,3352.3,3351.2,3.37768774]
[1734927893139,2.98312,3352.2,3351.2,0.39368774]
[1734927893358,0.7786,3352.3,3351.2,3.37767774]
[1734927893546,3.7786,3352.3,3351.2,3.37767774]
[1734927893753,3.7786,3352.3,3351.3,0.43304051]
[1734927893934,3.49151687,3353.0,3351.6,0.7695]
[1734927893935,3.0,3352.6,3351.6,0.7695]
[1734927894462,0.7786,3352.7,3351.7,2.98354]
[1734927895112,3.7786,3353.0,3351.8,2.98342]
[1734927895352,3.0,3352.9,3351.8,2.98342]
[1734927895533,3.0,3352.9,3351.9,0.375292]
[1734927895736,3.76102,3353.0,3352.1,2.98316]
[1734927895737,0.7786,3353.0,3352.1,2.98316]
[1734927895935,0.7786,3353.0,3352.0,3.75278]
[1734927896926,0.7877,3353.4,3352.0,0.7695]
[1734927897268,2.98222,3353.2,3352.0,0.7695]
[1734927897463,2.98222,3353.2,3352.1,0.4128102]
[1734927898462,0.7877,3353.4,3352.1,0.4128102]
[1734927898644,0.7877,3353.4,3352.0,0.7695]
[1734927898851,3.0,3353.3,3352.2,2.9831]
[1734927899337,2.98267,3352.7,3352.0,0.7695]
[1734927899536,0.55,3353.2,3352.0,0.7695]
[1734927899737,2.98249,3353.0,3352.0,0.7695]
[1734927900152,0.55,3353.3,3352.0,0.7695]
[1734927900351,2.98249,3352.9,3352.0,0.7695]
[1734927900857,2.98272,3352.7,3352.0,0.7695]
[1734927901163,0.8277,3353.2,3352.0,0.7695]
[1734927901361,0.55,3353.0,3352.0,0.7695]
[1734927901525,2.98259,3352.8,3352.0,0.7695]
[1734927902423,2.98268,3352.7,3352.0,0.7695]
[1734927902623,2.98274,3352.7,3352.0,0.7695]
[1734927902858,0.27857739,3352.6,3351.3,3.49151687]
[1734927903058,1.09387739,3352.6,3351.8,0.787]
[1734927903446,0.27857739,3352.5,3351.5,0.787]
[1734927903647,2.9834,3351.9,3351.5,0.787]
[1734927903848,3.49151687,3352.2,3351.2,0.787]
[1734927904084,2.98383,3351.4,3351.1,1.23404594]
[1734927904386,0.27857739,3351.3,3351.1,1.23404594]
[1734927904528,3.26249739,3351.3,3351.1,1.23404594]
[1734927904841,5.98346,3351.9,3351.1,1.23404594]
[1734927904842,0.27857739,3351.2,3351.1,1.23404594]
[1734927905022,0.27857739,3351.2,3351.0,0.1713274]
[1734927905873,0.27857739,3351.1,3351.0,0.1713274]
[1734927906478,0.27857739,3351.1,3351.0,0.9214274]
[1734927906859,0.27857739,3351.1,3351.0,1.31200314]
[1734927907163,0.27857739,3351.1,3351.0,4.29618314]
[1734927907530,2.9832,3352.1,3351.0,1.31200314]
[1734927907725,3.27857739,3352.2,3351.0,1.31200314]
[1734927907962,3.27857739,3352.2,3351.0,0.9214274]
[1734927908174,0.27857739,3352.1,3351.0,0.9214274]
[1734927908560,0.27857739,3352.0,3351.0,0.9214274]
[1734927908879,0.27857739,3352.0,3351.1,2.56807606]
[1734927909075,2.98347,3351.8,3351.1,3.22563472]
[1734927909477,0.27857739,3351.7,3351.1,2.56807606]
[1734927909681,0.27857739,3351.7,3351.0,0.9214274]
[1734927909895,0.27857739,3351.6,3351.0,0.9214274]
[1734927910248,0.27857739,3351.5,3351.0,0.9214274]
[1734927910582,0.27857739,3351.4,3351.0,0.9214274]
[1734927911094,0.27857739,3351.3,3351.0,0.9214274]
[1734927911658,0.27857739,3351.2,3351.0,0.9214274]
[1734927911863,0.27857739,3351.2,3351.0,0.1713274]
[1734927912188,0.27857739,3351.1,3351.0,0.1713274]
[1734927913289,0.27857739,3351.1,3351.0,1.0042274]
[1734927913472,0.27857739,3351.1,3351.0,1.40308514]
[1734927913862,0.27857739,3351.1,3351.0,1.0042274]
[1734927914294,0.27857739,3351.1,3351.0,0.1713274]
[1734927917806,0.27857739,3351.1,3351.0,3.9599074]
[1734927918173,0.27857739,3352.2,3351.0,3.9599074]
[1734927918709,0.27857739,3352.1,3351.0,3.9599074]
[1734927918894,0.27857739,3352.1,3351.1,0.39599074]
[1734927919211,3.26195739,3352.0,3351.1,0.39599074]
[1734927919396,0.27857739,3352.0,3351.1,0.39599074]
[1734927919603,0.27857739,3352.0,3351.0,0.9757274]
[1734927919918,0.27857739,3351.9,3351.0,0.9757274]
[1734927920282,0.27857739,3351.8,3351.1,2.98402]
[1734927921099,0.27857739,3351.7,3351.0,0.9757274]
[1734927921487,0.27857739,3351.6,3351.0,0.9757274]
[1734927921816,0.27857739,3351.6,3351.1,0.45486146]
[1734927922012,0.27857739,3351.5,3351.2,0.8009]
[1734927922213,0.27857739,3351.5,3351.4,2.98382]
[1734927922418,3.87089287,3353.0,3351.4,2.98382]
[1734927922601,3.87089287,3353.0,3351.9,0.8093]
[1734927923119,0.27891656,3352.8,3351.9,0.8093]
[1734927923495,0.27891656,3352.7,3351.9,0.8093]
[1734927924088,0.27891656,3352.6,3351.9,3.79267]
[1734927924420,0.27891656,3352.6,3352.0,0.379267]
[1734927924615,0.27891656,3352.5,3352.3,2.98297]
[1734927924816,0.27891656,3352.5,3352.4,2.98293]
[1734927925036,0.8279,3353.6,3352.4,3.75713]
[1734927925330,0.27874064,3353.5,3352.5,0.375713]
[1734927925680,0.27874064,3353.5,3352.5,2.98284]
[1734927925882,0.27874064,3353.4,3352.5,2.98284]
[1734927926080,0.27874064,3353.4,3352.7,0.7655]
[1734927926524,0.27874064,3353.3,3352.7,0.7655]
[1734927927022,0.27874064,3353.2,3352.7,0.7655]
[1734927927226,0.27874064,3353.2,3352.7,1.140333]
[1734927927427,0.27874064,3353.1,3352.7,1.140333]
[1734927928028,0.27874064,3353.0,3352.7,1.140333]
[1734927928201,0.27874064,3353.0,3352.4,0.7965]
[1734927928402,0.7956,3353.3,3352.1,0.7965]
[1734927928708,0.27836791,3352.9,3352.1,0.7965]
[1734927928902,2.98276,3352.6,3351.8,1.23404594]
[1734927929290,2.98276,3352.6,3351.6,0.75]
[1734927929516,1.06186791,3352.8,3351.6,1.81111449]
[1734927930035,2.98279,3352.6,3351.6,1.81111449]
[1734927930436,0.27836791,3352.7,3351.6,0.75]
[1734927930634,0.55,3352.6,3351.3,0.7584]
[1734927930849,3.7661,3352.1,3351.3,0.7584]
[1734927931595,0.27836791,3352.0,3351.3,0.7584]
[1734927931928,0.27836791,3351.9,3351.3,0.7584]
[1734927932531,0.27836791,3351.9,3351.3,1.79907571]
[1734927932837,0.27836791,3352.0,3351.3,1.79907571]
[1734927933041,0.27836791,3351.8,3351.3,1.79907571]
[1734927933401,0.27836791,3351.8,3351.3,1.04067571]
[1734927933703,2.98322,3352.1,3351.3,1.04067571]
[1734927934125,0.27836791,3352.0,3351.3,1.04067571]
[1734927934736,0.27836791,3351.9,3351.3,1.04067571]
[1734927935113,0.27836791,3351.8,3351.3,1.04067571]
[1734927935637,0.27836791,3351.7,3351.3,1.04067571]
[1734927935952,0.27836791,3352.0,3351.4,0.32482625]
[1734927936112,0.27836791,3352.0,3351.3,1.04067571]
[1734927936310,0.27836791,3351.9,3351.3,1.04067571]
[1734927936724,0.27836791,3351.8,3351.3,1.04067571]
[1734927937224,0.27836791,3351.7,3351.3,1.04067571]
[1734927938015,0.27836791,3352.0,3351.3,1.04067571]
[1734927938217,0.27836791,3352.0,3351.1,5.71118522]
[1734927938617,0.27836791,3351.9,3351.1,5.71118522]
[1734927939017,0.27836791,3351.8,3351.0,0.9232274]
[1734927939414,0.27836791,3351.7,3351.0,0.9232274]
[1734927940038,0.27836791,3351.6,3351.0,0.9232274]
[1734927940239,3.26209791,3351.6,3351.0,0.9232274]
[1734927940852,0.27836791,3351.5,3351.0,0.9232274]
[1734927941317,0.27836791,3351.4,3351.0,0.9232274]
[1734927941718,0.27836791,3351.3,3351.0,0.9232274]
[1734927942146,0.27836791,3351.2,3351.0,0.9232274]
[1734927942655,0.27836791,3351.1,3351.0,0.9232274]
[1734927943350,0.27836791,3351.5,3351.0,0.9232274]
[1734927943549,0.27836791,3351.4,3351.0,0.9232274]
[1734927944470,0.27836791,3351.3,3351.0,1.07556573]
[1734927944972,0.27836791,3351.7,3351.0,1.07556573]
[1734927945175,0.27836791,3351.2,3351.0,0.1713274]
[1734927945341,0.27836791,3351.1,3351.0,0.1713274]
[1734927946373,3.79554,3351.5,3351.0,0.1713274]
[1734927946578,0.27876487,3351.1,3351.0,0.1713274]
[1734927946810,2.98422,3351.0,3350.3,1.23404594]
[1734927946942,2.71118522,3350.6,3350.3,1.23404594]
[1734927947142,2.98471,3350.4,3350.3,1.23404594]
[1734927947367,2.9848,3350.3,3350.2,1.23404594]
[1734927947554,3.8173,3350.3,3350.2,1.23404594]
[1734927947967,4.09606487,3350.3,3350.2,1.23404594]
[1734927948146,4.64606487,3350.3,3350.2,1.23404594]
[1734927948881,1.66126487,3350.3,3349.3,0.7786]
[1734927949382,2.9849,3350.2,3349.3,0.7786]
[1734927949809,3.26366487,3350.2,3349.3,0.7786]